fUSD/lending_fUSD_20250806
["ID","MTS","AMOUNT","RATE_DAILY","PERIOD"]
[377596815,1754448815887,-813.13,0.00038356,14]
[377596816,1754448815899,-400.0,0.00038356,14]
[377596817,1754448815909,-431.16,0.00038356,14]
[377596818,1754448815919,-2113.48,0.00038356,14]
[377596819,1754448815929,-453.4,0.00038356,14]
[377596820,1754448815939,-682.09,0.00038356,14]
[377596821,1754448815948,-3720.93,0.00038356,14]
[377596822,1754448815957,-1902.77,0.00038356,14]
[377596823,1754448815967,-578.92,0.00038356,14]
[377596824,1754448815976,-1870.07,0.00038356,14]
[377596825,1754448815986,-449.08,0.00038356,7]
[377596826,1754448815995,-400.0,0.00038356,14]
[377596827,1754448816006,-744.99,0.00038356,14]
[377596828,1754448816016,-1451.6,0.00038356,14]
[377596829,1754448816025,-2192.19,0.00038356,14]
[377596830,1754448816035,-400.0,0.00038356,14]
[377596831,1754448816045,-1145.83,0.00038356,14]
[377596832,1754448816057,-1448.11,0.00038356,14]
[377596833,1754448816066,-2132.59,0.00038356,14]
[377596834,1754448816076,-2007.5,0.00038356,14]
[377596835,1754448816085,-2903.16,0.00038356,14]
[377596836,1754448816094,-400.0,0.00038356,14]
[377596837,1754448816103,-2062.82,0.00038356,14]
[377596838,1754448816113,-3514.4,0.00038356,14]
[377596839,1754448816122,-3679.16,0.00038356,14]
[377596840,1754448816131,-1366.96,0.00038356,14]
[377596841,1754448816141,-400.0,0.00038356,14]
[377596842,1754448816150,-2707.72,0.00038356,14]
[377596843,1754448816160,-2716.46,0.00038356,14]
[377596844,1754448816170,-1251.76,0.00038356,14]
[377596845,1754448816179,-2012.91,0.00038356,14]
[377596846,1754448816188,-1611.49,0.00038356,14]
[377596847,1754448816198,-460.8,0.00038356,14]
[377596848,1754448816207,-2266.27,0.00038356,14]
[377596849,1754448816216,-400.0,0.00038356,14]
[377596850,1754448816227,-604.96,0.00038356,14]
[377596851,1754448816236,-3442.72,0.00038356,14]
[377596852,1754448816246,-801.6,0.00038356,14]
[377596853,1754448816256,-606.74,0.00038356,14]
[377596854,1754448816266,-3610.57,0.00038356,14]
[377596855,1754448816276,-580.15,0.00038356,14]
[377596856,1754448816285,-881.76,0.00038356,14]
[377596857,1754448816295,-1967.92,0.00038356,14]
[377596858,1754448816305,-400.0,0.00038356,14]
[377596859,1754448816314,-2348.84,0.00038356,14]
[377596860,1754448816324,-826.11,0.00038356,14]
[377596861,1754448816334,-826.95,0.00038356,14]
[377596862,1754448816344,-958.68,0.00038356,14]
[377596863,1754448816354,-2698.14,0.00038356,14]
[377596864,1754448816363,-2097.04,0.00038356,14]
[377596865,1754448816373,-1738.83,0.00038356,14]
[377596866,1754448816382,-1152.57,0.00038356,14]
[377596867,1754448816391,-468.56,0.00038356,14]
[377596868,1754448816401,-1550.41,0.00038356,14]
[377596869,1754448816411,-400.0,0.00038356,14]
[377596870,1754448816420,-2945.22,0.00038356,14]
[377596871,1754448816431,-1000.0,0.00038356,120]
[377596872,1754448816440,-2061.05,0.00038356,14]
[377596873,1754448816449,-986.73,0.00038356,14]
[377596874,1754448816458,-1000.0,0.00038356,120]
[377596875,1754448816467,-522.01,0.00038356,14]
[377596876,1754448816476,-1971.84,0.00038356,14]
[377596877,1754448816485,-1000.0,0.00038356,120]
[377596878,1754448816494,-1605.08,0.00038356,14]
[377596879,1754448816503,-1000.0,0.00038356,120]
[377596880,1754448816512,-1000.0,0.00038356,120]
[377596881,1754448816521,-1022.7,0.00038356,14]
[377596882,1754448816530,-1000.0,0.00038356,120]
[377596883,1754448816539,-646.20382581,0.00038356,120]
[377596884,1754448816549,-2744.57,0.00038356,14]
[377596885,1754448816558,-883.72,0.00038356,14]
[377596886,1754448816567,-400.0,0.00038356,14]
[377596887,1754448816575,-2216.79,0.00038356,14]
[377596888,1754448816585,-1176.86,0.00038356,14]
[377596889,1754448816595,-2001.07,0.00038356,14]
[377596890,1754448816604,-400.0,0.00038356,14]
[377596891,1754448816614,-2625.94,0.00038356,14]
[377596892,1754448816623,-1708.89,0.00038356,14]
[377596893,1754448816633,-2209.33,0.00038356,14]
[377596894,1754448816642,-1132.6,0.00038356,14]
[377596895,1754448816651,-1659.02,0.00038356,14]
[377596896,1754448816660,-2337.97,0.00038356,14]
[377596897,1754448816670,-1295.16,0.00038356,14]
[377596898,1754448816679,-1663.17,0.00038356,14]
[377596899,1754448816688,-2361.68,0.00038356,14]
[377596900,1754448816698,-2090.44,0.00038356,14]
[377596901,1754448816707,-1513.53,0.00038356,14]
[377596902,1754448816717,-949.45,0.00038356,14]
[377596903,1754448816726,-2974.22,0.00038356,14]
[377596904,1754448816735,-468.15,0.00038356,14]
[377596905,1754448816745,-702.26,0.00038356,14]
[377596906,1754448816754,-425.69,0.00038356,14]
[377596907,1754448816763,-2717.6,0.00038356,14]
[377596908,1754448816772,-2095.59,0.00038356,14]
[377596909,1754448816781,-467.46,0.00038356,14]
[377596910,1754448816791,-1148.8,0.00038356,14]
[377596911,1754448816801,-954.12,0.00038356,14]
[377596912,1754448816810,-1740.13,0.00038356,14]
[377596913,1754448816819,-1198.3,0.00038356,14]
[377596914,1754448816829,-2021.48,0.00038356,14]
[377596915,1754448816838,-662.22,0.00038356,14]
[377596916,1754448816847,-2546.61,0.00038356,14]
[377596917,1754448816857,-2962.89,0.00038356,14]
[377596918,1754448816867,-504.61,0.00038356,14]
[377596919,1754448816876,-2356.45,0.00038356,14]
[377596920,1754448816885,-2130.93,0.00038356,14]
[377596921,1754448816895,-400.0,0.00038356,14]
[377596922,1754448816907,-423.2,0.00038356,14]
[377596923,1754448816917,-400.0,0.00038356,14]
[377596924,1754448816927,-2575.51,0.00038356,14]
[377596925,1754448816937,-400.0,0.00038356,14]
[377596926,1754448816947,-1766.95,0.00038356,14]
[377596927,1754448816957,-856.83,0.00038356,14]
[377596928,1754448816966,-3248.58,0.00038356,14]
[377596929,1754448816977,-5306.84,0.00038356,14]
[377596930,1754448816988,-888.56,0.00038356,14]
[377596931,1754448816997,-547.97,0.00038356,14]
[377596932,1754448817006,-3016.17,0.00038356,14]
[377596933,1754448817016,-2668.39,0.00038356,14]
[377596934,1754448817025,-496.21,0.00038356,14]
[377596935,1754448817035,-3791.14,0.00038356,14]
[377596936,1754448817044,-605.14,0.00038356,14]
[377596937,1754448817053,-727.35,0.00038356,14]
[377596938,1754448817064,-400.0,0.00038356,14]
[377596939,1754448817073,-975.71,0.00038356,14]
[377596940,1754448817082,-400.0,0.00038356,14]
[377596941,1754448817091,-400.0,0.00038356,14]
[377596942,1754448817101,-3485.41,0.00038356,14]
[377596943,1754448817110,-2054.01,0.00038356,14]
[377596944,1754448817120,-2009.81,0.00038356,14]
[377596945,1754448817130,-400.0,0.00038356,14]
[377596946,1754448817141,-2179.98,0.00038356,14]
[377596947,1754448817152,-1517.52,0.00038356,14]
[377596948,1754448817161,-400.0,0.00038356,14]
[377596949,1754448817173,-1388.31,0.00038356,14]
[377596950,1754448817188,-957.04,0.00038356,14]
[377596951,1754448817200,-615.01,0.00038356,14]
[377596952,1754448817210,-2558.14,0.00038356,14]
[377596953,1754448817219,-1920.97,0.00038356,14]
[377596954,1754448817229,-410.84,0.00038356,14]
[377596955,1754448817239,-1672.02,0.00038356,14]
[377596956,1754448817250,-1561.14,0.00038356,14]
[377596957,1754448817259,-2448.42,0.00038356,14]
[377596958,1754448817268,-1718.51,0.00038356,14]
[377596959,1754448817277,-1537.42,0.00038356,14]
[377596960,1754448817298,-400.0,0.00038356,14]
[377596961,1754448817308,-2286.3,0.00038356,14]
[377596962,1754448817317,-1497.84,0.00038356,14]
[377596963,1754448817328,-1193.12,0.00038356,14]
[377596964,1754448817338,-400.0,0.00038356,14]
[377596965,1754448817347,-2660.98,0.00038356,14]
[377596966,1754448817356,-818.29,0.00038356,2]
[377596967,1754448817365,-438.0,0.00038356,14]
[377596968,1754448817374,-400.0,0.00038356,14]
[377596969,1754448817383,-2817.66,0.00038356,14]
[377596970,1754448817392,-400.0,0.00038356,14]
[377596971,1754448817401,-2306.54,0.00038356,14]
[377596972,1754448817410,-2354.23,0.00038356,14]
[377596973,1754448817419,-12433.87,0.00038356,14]
[377596974,1754448817428,-250.0,0.00038356,5]
[377596975,1754448817437,-422.0,0.00038363,90]
[377596976,1754448817445,-155.07297553,0.00038438,30]
[377596977,1754448817454,-2095.28475783,0.00038528,10]
[377596978,1754448817463,-513.0,0.00038615,31]
[377596979,1754448817472,-155.643466,0.0003863,14]
[377596980,1754448817481,-1106.87216,0.0003863,14]
[377596981,1754448817490,-887.819081,0.0003863,14]
[377596982,1754448817499,-1255.615788,0.0003863,14]
[377596983,1754448817518,-192.679796,0.0003863,14]
[377596984,1754448817534,-1721.73,0.0003863,14]
[377596985,1754448817551,-155.350478,0.0003863,14]
[377596986,1754448817568,-400.0,0.0003863,14]
[377596987,1754448817584,-155.35048,0.0003863,14]
[377596988,1754448817602,-400.0,0.0003863,14]
[377596989,1754448817619,-400.0,0.0003863,14]
[377596990,1754448817638,-466.38166271,0.0003863,14]
[377596991,1754448817655,-400.0,0.0003863,14]
[377596992,1754448817672,-155.350478,0.0003863,14]
[377596993,1754448817688,-517.54,0.0003863,14]
[377596994,1754448817701,-1879.66,0.0003863,14]
[377596995,1754448817719,-933.27,0.0003863,14]
[377596996,1754448817733,-400.0,0.0003863,14]
[377596997,1754448817753,-400.0,0.0003863,14]
[377596998,1754448817766,-708.86,0.0003863,14]
[377596999,1754448817789,-412.42,0.0003863,14]
[377597000,1754448817807,-400.0,0.0003863,14]
[377597001,1754448817821,-415.77,0.0003863,14]
[377597002,1754448817837,-165.794744,0.0003863,14]
[377597003,1754448817853,-1925.55,0.0003863,14]
[377597004,1754448817867,-866.96,0.0003863,14]
[377597005,1754448817882,-523.82,0.0003863,14]
[377597006,1754448817899,-400.0,0.0003863,14]
[377597007,1754448817914,-400.0,0.0003863,14]
[377597008,1754448817930,-1993.73,0.0003863,14]
[377597009,1754448817948,-478.37,0.0003863,14]
[377597010,1754448817965,-1455.59,0.0003863,14]
[377597011,1754448817981,-400.0,0.0003863,14]
[377597012,1754448817996,-1137.51,0.0003863,14]
[377597013,1754448818012,-1494.66,0.0003863,14]
[377597014,1754448818028,-2002.12,0.0003863,14]
[377597015,1754448818042,-400.0,0.0003863,14]
[377597016,1754448818058,-1040.39,0.0003863,14]
[377597017,1754448818079,-400.0,0.0003863,14]
[377597018,1754448818097,-400.0,0.0003863,14]
[377597019,1754448818112,-400.0,0.0003863,14]
[377597020,1754448818127,-400.0,0.0003863,14]
[377597021,1754448818143,-400.0,0.0003863,14]
[377597022,1754448818158,-662.16,0.0003863,14]
[377597023,1754448818173,-400.0,0.0003863,14]
[377597024,1754448818187,-2153.57,0.0003863,14]
[377597025,1754448818202,-1355.9,0.0003863,14]
[377597026,1754448818217,-400.0,0.0003863,14]
[377597027,1754448818231,-904.68,0.0003863,14]
[377597028,1754448818245,-400.0,0.0003863,14]
[377597029,1754448818260,-545.31,0.0003863,14]
[377597030,1754448818274,-400.0,0.0003863,14]
[377597031,1754448818290,-400.0,0.0003863,14]
[377597032,1754448818304,-400.0,0.0003863,14]
[377597033,1754448818317,-726.19,0.0003863,14]
[377597034,1754448818332,-1848.23,0.0003863,14]
[377597035,1754448818347,-400.0,0.0003863,14]
[377597036,1754448818361,-837.58,0.0003863,14]
[377597037,1754448818375,-400.0,0.0003863,14]
[377597038,1754448818390,-400.0,0.0003863,14]
[377597039,1754448818412,-426.53,0.0003863,14]
[377597040,1754448818434,-2053.66,0.0003863,14]
[377597041,1754448818452,-463.84,0.0003863,14]
[377597042,1754448818473,-1680.73,0.0003863,14]
[377597043,1754448818492,-400.0,0.0003863,14]
[377597044,1754448818511,-589.79,0.0003863,14]
[377597045,1754448818530,-434.90472333,0.0003863,14]
[377597046,1754448818545,-400.0,0.0003863,14]
[377597047,1754448818560,-1174.99,0.0003863,14]
[377597048,1754448818574,-485.82,0.0003863,14]
[377597049,1754448818588,-1560.83,0.0003863,14]
[377597050,1754448818602,-1343.09,0.0003863,14]
[377597051,1754448818616,-400.0,0.0003863,14]
[377597052,1754448818630,-400.0,0.0003863,14]
[377597053,1754448818645,-400.0,0.0003863,14]
[377597054,1754448818661,-652.79,0.0003863,14]
[377597055,1754448818676,-807.49,0.0003863,14]
[377597056,1754448818690,-2272.01,0.0003863,14]
[377597057,1754448818706,-439.11,0.0003863,14]
[377597058,1754448818719,-400.0,0.0003863,14]
[377597059,1754448818733,-400.0,0.0003863,14]
[377597060,1754448818747,-1269.54,0.0003863,14]
[377597061,1754448818760,-400.0,0.0003863,14]
[377597062,1754448818774,-356.03247216,0.0003863,14]
[377597063,1754448818787,-1601.77,0.0003863,14]
[377597064,1754448818802,-400.0,0.0003863,14]
[377597065,1754448818817,-549.88,0.0003863,14]
[377597066,1754448818831,-691.52,0.0003863,14]
[377597067,1754448818847,-400.0,0.0003863,14]
[377597068,1754448818861,-937.63,0.0003863,14]
[377597069,1754448818876,-1238.53,0.0003863,14]
[377597070,1754448818893,-258.5235139,0.0003863,14]
[377597071,1754448818908,-842.35,0.0003863,14]
[377597072,1754448818922,-758.93,0.0003863,14]
[377597073,1754448818936,-566.9,0.0003863,14]
[377597074,1754448818953,-1884.93,0.0003863,14]
[377597075,1754448818967,-1051.66,0.0003863,14]
[377597076,1754448818982,-1133.77,0.0003863,14]
[377597077,1754448818995,-1340.96,0.0003863,14]
[377597078,1754448819010,-1269.95,0.0003863,14]
[377597079,1754448819024,-1245.02,0.0003863,14]
[377597080,1754448819040,-400.0,0.0003863,14]
[377597081,1754448819056,-400.0,0.0003863,14]
[377597082,1754448819070,-400.0,0.0003863,14]
[377597083,1754448819085,-1135.75,0.0003863,14]
[377597084,1754448819100,-400.96,0.0003863,14]
[377597085,1754448819115,-888.4,0.0003863,14]
[377597086,1754448819130,-1391.51,0.0003863,14]
[377597087,1754448819143,-400.0,0.0003863,14]
[377597088,1754448819158,-2022.35,0.0003863,14]
[377597089,1754448819173,-400.0,0.0003863,14]
[377597090,1754448819188,-885.84,0.0003863,14]
[377597091,1754448819203,-400.0,0.0003863,14]
[377597092,1754448819217,-1485.63,0.0003863,14]
[377597093,1754448819232,-577.94,0.0003863,14]
[377597094,1754448819245,-400.0,0.0003863,14]
[377597095,1754448819259,-2205.6,0.0003863,14]
[377597096,1754448819273,-594.52,0.0003863,14]
[377597097,1754448819286,-516.69,0.0003863,14]
[377597098,1754448819302,-400.99,0.0003863,14]
[377597099,1754448819315,-963.31,0.0003863,14]
[377597100,1754448819330,-798.43,0.0003863,14]
[377597101,1754448819344,-400.0,0.0003863,14]
[377597102,1754448819357,-205.19687055,0.0003863,14]
[377597103,1754448819373,-825.61,0.0003863,14]
[377597104,1754448819386,-400.0,0.0003863,14]
[377597105,1754448819400,-1955.89,0.0003863,14]
[377597106,1754448819413,-425.14,0.0003863,14]
[377597107,1754448819426,-400.0,0.0003863,14]
[377597108,1754448819441,-872.75,0.0003863,14]
[377597109,1754448819455,-672.46,0.0003863,14]
[377597110,1754448819468,-400.0,0.0003863,7]
[377597111,1754448819483,-2048.4,0.0003863,14]
[377597112,1754448819496,-666.07,0.0003863,14]
[377597113,1754448819511,-1186.37,0.0003863,14]
[377597114,1754448819526,-1867.25,0.0003863,14]
[377597115,1754448819540,-400.0,0.0003863,14]
[377597116,1754448819553,-400.0,0.0003863,14]
[377597117,1754448819568,-1486.37,0.0003863,14]
[377597118,1754448819583,-1282.75,0.0003863,14]
[377597119,1754448819598,-400.0,0.0003863,14]
[377597120,1754448819611,-620.41,0.0003863,14]
[377597121,1754448819625,-426.54,0.0003863,14]
[377597122,1754448819640,-1685.19,0.0003863,14]
[377597123,1754448819654,-546.47,0.0003863,14]
[377597124,1754448819668,-1042.07,0.0003863,14]
[377597125,1754448819683,-607.47,0.0003863,14]
[377597126,1754448819696,-400.0,0.0003863,14]
[377597127,1754448819711,-1387.34,0.0003863,14]
[377597128,1754448819724,-1608.62,0.0003863,14]
[377597129,1754448819738,-1266.36,0.0003863,14]
[377597130,1754448819752,-640.46,0.0003863,14]
[377597131,1754448819766,-1198.83,0.0003863,14]
[377597132,1754448819780,-850.06,0.0003863,14]
[377597133,1754448819795,-1040.96,0.0003863,14]
[377597134,1754448819809,-400.0,0.0003863,14]
[377597135,1754448819822,-2213.68,0.0003863,14]
[377597136,1754448819837,-627.73,0.0003863,14]
[377597137,1754448819851,-400.0,0.0003863,14]
[377597138,1754448819864,-400.0,0.0003863,14]
[377597139,1754448819878,-471.56,0.0003863,14]
[377597140,1754448819892,-400.0,0.0003863,14]
[377597141,1754448819908,-400.0,0.0003863,14]
[377597142,1754448819921,-511.19,0.0003863,14]
[377597143,1754448819936,-225.38913376,0.0003863,14]
[377597144,1754448819950,-400.0,0.0003863,14]
[377597145,1754448819963,-539.356284,0.0003863,14]
[377597146,1754448819980,-440.85,0.0003863,14]
[377597147,1754448819995,-860.58,0.0003863,14]
[377597148,1754448820009,-1113.65,0.0003863,14]
[377597149,1754448820023,-985.67,0.0003863,14]
[377597150,1754448820038,-400.0,0.0003863,14]
[377597151,1754448820053,-523.26,0.0003863,14]
[377597152,1754448820067,-187.85319702,0.0003863,14]
[377597153,1754448820082,-531.05,0.0003863,14]
[377597154,1754448820096,-400.0,0.0003863,14]
[377597155,1754448820111,-1788.17,0.0003863,14]
[377597156,1754448820126,-1913.41,0.0003863,14]
[377597157,1754448820140,-400.0,0.0003863,14]
[377597158,1754448820154,-1243.8,0.0003863,14]
[377597159,1754448820171,-400.0,0.0003863,14]
[377597160,1754448820188,-2195.18,0.0003863,14]
[377597161,1754448820202,-400.0,0.0003863,14]
[377597162,1754448820217,-400.0,0.0003863,14]
[377597163,1754448820232,-973.74,0.0003863,14]
[377597164,1754448820246,-400.0,0.0003863,14]
[377597165,1754448820261,-400.0,0.0003863,14]
[377597166,1754448820276,-400.0,0.0003863,14]
[377597167,1754448820290,-511.74,0.0003863,14]
[377597168,1754448820304,-1927.1,0.0003863,14]
[377597169,1754448820318,-880.55,0.0003863,14]
[377597170,1754448820333,-1421.29,0.0003863,14]
[377597171,1754448820347,-1559.95,0.0003863,14]
[377597172,1754448820361,-1237.93,0.0003863,14]
[377597173,1754448820376,-764.11,0.0003863,14]
[377597174,1754448820389,-832.23,0.0003863,14]
[377597175,1754448820405,-1200.18,0.0003863,14]
[377597176,1754448820421,-397.25,0.0003863,14]
[377597177,1754448820435,-982.62,0.0003863,14]
[377597178,1754448820449,-851.23,0.0003863,14]
[377597179,1754448820463,-483.16,0.0003863,14]
[377597180,1754448820477,-1009.21,0.0003863,14]
[377597181,1754448820491,-400.0,0.0003863,14]
[377597182,1754448820505,-400.0,0.0003863,14]
[377597183,1754448820519,-1056.91,0.0003863,14]
[377597184,1754448820532,-454.78,0.0003863,14]
[377597185,1754448820546,-1461.35,0.0003863,14]
[377597186,1754448820560,-400.0,0.0003863,14]
[377597187,1754448820573,-519.19,0.0003863,14]
[377597188,1754448820587,-1050.13,0.0003863,14]
[377597189,1754448820601,-1907.53,0.0003863,14]
[377597190,1754448820616,-1615.6,0.0003863,14]
[377597191,1754448820629,-400.0,0.0003863,14]
[377597192,1754448820643,-1550.81,0.0003863,14]
[377597193,1754448820656,-400.0,0.0003863,14]
[377597194,1754448820670,-1830.1,0.0003863,14]
[377597195,1754448820684,-802.15,0.0003863,14]
[377597196,1754448820698,-1088.04,0.0003863,14]
[377597197,1754448820711,-417.37,0.0003863,14]
[377597198,1754448820725,-400.0,0.0003863,14]
[377597199,1754448820739,-1532.37,0.0003863,14]
[377597200,1754448820753,-3675.96,0.0003863,14]
[377597201,1754448820767,-498.81,0.0003863,14]
[377597202,1754448820781,-675.67,0.0003863,14]
[377597203,1754448820796,-1930.27,0.0003863,14]
[377597204,1754448820809,-477.88,0.0003863,14]
[377597205,1754448820823,-176.45,0.0003863,14]
[377597206,1754448820837,-1895.26,0.0003863,14]
[377597207,1754448820851,-2398.75,0.0003863,14]
[377597208,1754448820866,-693.8,0.0003863,14]
[377597209,1754448820880,-1056.68,0.0003863,14]
[377597210,1754448820895,-400.0,0.0003863,14]
[377597211,1754448820912,-400.0,0.0003863,14]
[377597212,1754448820926,-400.0,0.0003863,14]
[377597213,1754448820940,-1000.88,0.0003863,14]
[377597214,1754448820956,-694.7,0.0003863,14]
[377597215,1754448820970,-400.0,0.0003863,14]
[377597216,1754448820984,-400.0,0.0003863,14]
[377597217,1754448820998,-1087.98,0.0003863,14]
[377597218,1754448821014,-1317.27,0.0003863,14]
[377597219,1754448821027,-1841.73,0.0003863,14]
[377597220,1754448821041,-432.07,0.0003863,14]
[377597221,1754448821055,-660.48,0.0003863,14]
[377597222,1754448821069,-400.0,0.0003863,14]
[377597223,1754448821083,-400.0,0.0003863,14]
[377597224,1754448821097,-1706.66,0.0003863,14]
[377597225,1754448821110,-400.0,0.0003863,14]
[377597226,1754448821135,-2115.6,0.0003863,14]
[377597227,1754448821148,-2048.1,0.0003863,14]
[377597228,1754448821163,-400.0,0.0003863,14]
[377597229,1754448821177,-890.38,0.0003863,14]
[377597230,1754448821190,-400.0,0.0003863,14]
[377597231,1754448821204,-763.76,0.0003863,14]
[377597232,1754448821218,-400.0,0.0003863,14]
[377597233,1754448821231,-400.0,0.0003863,14]
[377597234,1754448821244,-554.46,0.0003863,14]
[377597235,1754448821259,-3061.86,0.0003863,14]
[377597236,1754448821273,-572.41,0.0003863,14]
[377597237,1754448821287,-1869.25,0.0003863,14]
[377597238,1754448821300,-1241.1,0.0003863,14]
[377597239,1754448821313,-1742.73,0.0003863,14]
[377597240,1754448821327,-400.0,0.0003863,14]
[377597241,1754448821341,-1978.5,0.0003863,14]
[377597242,1754448821355,-589.98,0.0003863,14]
[377597243,1754448821368,-1056.28,0.0003863,14]
[377597244,1754448821382,-1789.45,0.0003863,14]
[377597245,1754448821395,-400.0,0.0003863,14]
[377597246,1754448821409,-3264.35,0.0003863,14]
[377597247,1754448821423,-1465.39,0.0003863,14]
[377597248,1754448821436,-719.58,0.0003863,14]
[377597249,1754448821451,-400.0,0.0003863,14]
[377597250,1754448821464,-1335.74,0.0003863,14]
[377597251,1754448821478,-1301.62,0.0003863,14]
[377597252,1754448821491,-1906.92,0.0003863,14]
[377597253,1754448821505,-2206.71,0.0003863,14]
[377597254,1754448821518,-493.26,0.0003863,14]
[377597255,1754448822153,-400.0,0.0003863,14]
[377597256,1754448822175,-400.0,0.0003863,14]
[377597257,1754448822212,-451.74,0.0003863,14]
[377597258,1754448822222,-287.95,0.0003863,14]
[377597259,1754448822231,-400.0,0.0003863,14]
[377597260,1754448822241,-1276.43,0.0003863,14]
[377597261,1754448822250,-986.68,0.0003863,14]
[377597262,1754448822259,-947.42,0.0003863,14]
[377597263,1754448822268,-400.0,0.0003863,14]
[377597264,1754448822277,-922.85,0.0003863,14]
[377597265,1754448822288,-2195.08,0.0003863,14]
[377597266,1754448822299,-1464.57,0.0003863,14]
[377597267,1754448822308,-2197.84,0.0003863,14]
[377597268,1754448822317,-804.15,0.0003863,14]
[377597269,1754448822326,-400.0,0.0003863,14]
[377597270,1754448822336,-802.3,0.0003863,14]
[377597271,1754448822345,-820.58,0.0003863,14]
[377597272,1754448822354,-400.0,0.0003863,14]
[377597273,1754448822363,-684.16,0.0003863,14]
[377597274,1754448822373,-400.0,0.0003863,14]
[377597275,1754448822382,-611.45,0.0003863,14]
[377597276,1754448822393,-744.31,0.0003863,14]
[377597277,1754448822402,-1536.69,0.0003863,14]
[377597278,1754448822412,-2158.92,0.0003863,14]
[377597279,1754448822421,-400.0,0.0003863,14]
[377597280,1754448822431,-461.52,0.0003863,14]
[377597281,1754448822439,-400.0,0.0003863,14]
[377597282,1754448822449,-219.63754021,0.0003863,14]
[377597283,1754448822458,-545.58,0.0003863,14]
[377597284,1754448822467,-300.0,0.0003863,14]
[377597285,1754448822477,-521.67,0.0003863,14]
[377597286,1754448822486,-1521.24,0.0003863,14]
[377597287,1754448822496,-850.08,0.0003863,14]
[377597288,1754448822506,-2094.08,0.0003863,14]
[377597289,1754448822515,-1086.81,0.0003863,14]
[377597290,1754448822524,-1148.89,0.0003863,14]
[377597291,1754448822533,-647.61,0.0003863,14]
[377597292,1754448822542,-1804.32,0.0003863,14]
[377597293,1754448822551,-688.12,0.0003863,14]
[377597294,1754448822561,-575.0,0.0003863,14]
[377597295,1754448822572,-460.78,0.0003863,14]
[377597296,1754448822583,-400.0,0.0003863,14]
[377597297,1754448822594,-1509.88,0.0003863,14]
[377597298,1754448822603,-400.0,0.0003863,14]
[377597299,1754448822615,-400.0,0.0003863,14]
[377597300,1754448822625,-400.0,0.0003863,14]
[377597301,1754448822635,-1836.14,0.0003863,14]
[377597302,1754448822645,-449.13,0.0003863,14]
[377597303,1754448822657,-1622.09,0.0003863,14]
[377597304,1754448822666,-2961.28,0.0003863,14]
[377597305,1754448822679,-1032.0,0.0003863,14]
[377597306,1754448822689,-878.8,0.0003863,14]
[377597307,1754448822700,-2880.34,0.0003863,14]
[377597308,1754448822708,-1829.37,0.0003863,14]
[377597309,1754448822718,-1462.8,0.0003863,14]
[377597310,1754448822727,-3418.23,0.0003863,14]
[377597311,1754448822736,-1158.06,0.0003863,14]
[377597312,1754448822746,-400.0,0.0003863,14]
[377597313,1754448822755,-1563.04,0.0003863,14]
[377597314,1754448822764,-774.95,0.0003863,14]